[Event "Nové Hrady - Rapid A"]
[Site "Nové Hrady, Czech Republic"]
[Date "2024.08.10"]
[Round "5.3"]
[White "Dudarec, Elias"]
[Black "Rausch, Rudolf"]
[Result "1/2-1/2"]
[TimeControl "2x15min+5s"]
[WhiteFideId "23714930"]
[BlackFideId "1639455"]
[WhiteElo "1588"]
[BlackElo "1838"]

1. e4 {[%clk 00:15:08]} {[%emt 00:00:02]} d6 {[%clk 00:15:06]} {[%emt
00:00:05]} 2. d4 {[%clk 00:15:09]} {[%emt 00:00:03]} g6 {[%clk 00:15:10]}
{[%emt 00:00:02]} 3. Nc3 {[%clk 00:15:08]} {[%emt 00:00:06]} Bg7 {[%clk
00:15:11]} {[%emt 00:00:04]} 4. Be3 {[%clk 00:14:59]} {[%emt 00:00:14]} Nd7
{[%clk 00:15:04]} {[%emt 00:00:12]} 5. Be2 {[%clk 00:14:36]} {[%emt 00:00:28]}
Ngf6 {[%clk 00:15:07]} {[%emt 00:00:02]} 6. Qd2 {[%clk 00:14:23]} {[%emt
00:00:17]} O-O {[%clk 00:15:07]} {[%emt 00:00:05]} 7. Bh6 {[%clk 00:14:12]}
{[%emt 00:00:16]} e5 {[%clk 00:14:53]} {[%emt 00:00:20]} 8. Bxg7 {[%clk
00:14:15]} {[%emt 00:00:02]} Kxg7 {[%clk 00:14:56]} 9. d5 {[%emt 00:00:18]} a6
{[%clk 00:14:45]} {[%emt 00:00:07]} 10. h4 {[%clk 00:14:11]} {[%emt 00:00:06]}
h5 {[%clk 00:14:45]} {[%emt 00:00:05]} 11. Nf3 {[%clk 00:13:53]} {[%emt
00:00:23]} Nc5 {[%clk 00:14:42]} {[%emt 00:00:08]} 12. Ng5 {[%clk 00:13:26]}
{[%emt 00:00:33]} Nh7 {[%clk 00:14:13]} {[%emt 00:00:33]} 13. Nxh7 {[%clk
00:12:31]} {[%emt 00:01:00]} Kxh7 {[%clk 00:14:17]} 14. g4 {[%clk 00:12:08]}
{[%emt 00:00:30]} Bxg4 {[%clk 00:13:17]} {[%emt 00:01:05]} 15. Bxg4 {[%clk
00:12:08]} {[%emt 00:00:05]} hxg4 {[%clk 00:13:19]} {[%emt 00:00:02]} 16. h5
{[%clk 00:11:44]} {[%emt 00:00:29]} g5 {[%clk 00:13:22]} {[%emt 00:00:02]} 17.
O-O-O {[%clk 00:09:33]} {[%emt 00:02:17]} Qf6 {[%clk 00:12:27]} {[%emt
00:00:59]} 18. b4 {[%clk 00:08:45]} {[%emt 00:00:53]} Nd7 {[%clk 00:12:20]}
{[%emt 00:00:12]} 19. Ne2 {[%clk 00:08:06]} {[%emt 00:00:44]} Kh6 {[%clk
00:12:01]} {[%emt 00:00:24]} 20. Rdg1 {[%clk 00:06:57]} {[%emt 00:01:14]} Qf3
{[%clk 00:11:32]} {[%emt 00:00:34]} 21. Ng3 {[%clk 00:05:30]} {[%emt 00:01:33]}
f6 {[%clk 00:10:43]} {[%emt 00:00:54]} 22. Nf5+ {[%clk 00:05:28]} {[%emt
00:00:06]} Kh7 {[%clk 00:10:45]} {[%emt 00:00:03]} 23. Qe3 {[%clk 00:03:52]}
{[%emt 00:01:42]} Nb6 {[%clk 00:10:05]} {[%emt 00:00:44]} 24. Qxf3 {[%clk
00:03:33]} {[%emt 00:00:24]} gxf3 {[%clk 00:10:08]} 25. Rh3 {[%clk 00:03:33]}
{[%emt 00:00:06]} Nc4 {[%clk 00:09:35]} {[%emt 00:00:37]} 26. Rxf3 {[%clk
00:03:31]} {[%emt 00:00:09]} b5 {[%clk 00:09:31]} {[%emt 00:00:09]} 27. Rc3
{[%clk 00:03:26]} {[%emt 00:00:09]} a5 {[%clk 00:09:17]} {[%emt 00:00:19]} 28.
bxa5 {[%clk 00:02:37]} {[%emt 00:00:54]} Rxa5 {[%clk 00:09:20]} {[%emt
00:00:02]} 29. Kb1 {[%clk 00:02:36]} {[%emt 00:00:05]} Rf7 {[%clk 00:08:41]}
{[%emt 00:00:45]} 30. f3 {[%clk 00:02:35]} {[%emt 00:00:06]} Ra4 {[%clk
00:08:19]} {[%emt 00:00:27]} 31. Rd1 {[%clk 00:01:54]} {[%emt 00:00:46]} Rf8
{[%clk 00:07:18]} {[%emt 00:01:05]} 32. Ne3 {[%clk 00:01:33]} {[%emt 00:00:27]}
Rfa8 {[%clk 00:06:46]} {[%emt 00:00:36]} 33. Nxc4 {[%clk 00:00:36]} {[%emt
00:01:04]} bxc4 {[%clk 00:06:44]} {[%emt 00:00:06]} 34. Kc1 {[%clk 00:00:26]}
{[%emt 00:00:16]} R8a7 {[%clk 00:06:32]} {[%emt 00:00:17]} 35. a3 {[%clk
00:00:21]} {[%emt 00:00:10]} Kh6 {[%clk 00:06:34]} {[%emt 00:00:03]} 36. Kb2
{[%clk 00:00:12]} {[%emt 00:00:14]} Kxh5 {[%clk 00:06:18]} {[%emt 00:00:20]} 37.
Rh1+ {[%clk 00:00:16]} Kg6 {[%clk 00:06:22]} {[%emt 00:00:02]} 38. Rh8 {[%clk
00:00:18]} {[%emt 00:00:03]} Rb7+ {[%clk 00:06:17]} {[%emt 00:00:10]} 39. Kc1
{[%clk 00:00:19]} {[%emt 00:00:03]} Kg7 {[%clk 00:06:09]} {[%emt 00:00:14]} 40.
Rd8 {[%clk 00:00:14]} {[%emt 00:00:09]} Kf7 {[%clk 00:06:03]} {[%emt 00:00:11]}
41. Rd7+ {[%clk 00:00:12]} {[%emt 00:00:08]} Ke8 {[%clk 00:06:04]} {[%emt
00:00:03]} 42. Rh7 {[%clk 00:00:15]} {[%emt 00:00:02]} Rba7 {[%clk 00:06:01]}
{[%emt 00:00:08]} 43. Kb2 {[%clk 00:00:19]} {[%emt 00:00:02]} Rb7+ {[%clk
00:05:44]} {[%emt 00:00:20]} 44. Ka2 {[%clk 00:00:14]} {[%emt 00:00:11]} Rba7
{[%clk 00:05:28]} {[%emt 00:00:22]} 45. Kb2 {[%emt 00:00:11]} Rb7+ {[%clk
00:05:17]} {[%emt 00:00:14]} 46. Ka2 {[%clk 00:00:12]} {[%emt 00:00:03]} Kf8
{[%clk 00:05:09]} {[%emt 00:00:12]} 47. Rd7 {[%clk 00:00:13]} {[%emt 00:00:04]}
Ke8 {[%clk 00:05:10]} {[%emt 00:00:04]} 48. Rh7 {[%clk 00:00:16]} {[%emt
00:00:03]} Kf8 {[%clk 00:05:13]} 49. Re3 {[%clk 00:00:15]} {[%emt 00:00:06]}
Ra6 {[%clk 00:04:50]} {[%emt 00:00:28]} 50. Rc3 {[%clk 00:00:09]} {[%emt
00:00:11]} Rab6 {[%clk 00:04:47]} {[%emt 00:00:09]} 51. a4 {[%clk 00:00:07]}
{[%emt 00:00:07]} Rb2+ {[%clk 00:04:48]} {[%emt 00:00:03]} 52. Ka3 {[%clk
00:00:11]} Rb1 {[%clk 00:04:50]} {[%emt 00:00:05]} 53. Ka2 {[%clk 00:00:07]}
{[%emt 00:00:09]} R1b2+ {[%clk 00:04:51]} {[%emt 00:00:04]} 54. Ka3 {[%clk
00:00:07]} {[%emt 00:00:05]} Rb1 {[%clk 00:04:47]} {[%emt 00:00:09]} 55. Ka2
{[%clk 00:00:10]} {[%emt 00:00:02]} R7b2+ {[%clk 00:04:44]} {[%emt 00:00:07]}
56. Ka3 {[%emt 00:00:03]} Rb7 {[%clk 00:04:40]} {[%emt 00:00:07]} 57. Ka2
{[%clk 00:00:15]} {[%emt 00:00:04]} R1b4 {[%clk 00:04:36]} {[%emt 00:00:09]} 58.
Ka3 {[%clk 00:00:16]} {[%emt 00:00:04]} Rb1 {[%clk 00:04:34]} {[%emt 00:00:08]}
59. Ka2 {[%clk 00:00:20]} R1b2+ {[%clk 00:04:36]} {[%emt 00:00:03]} 60. Ka3
{[%clk 00:00:22]} {[%emt 00:00:03]} Rb1 {[%clk 00:04:40]} {[%emt 00:00:02]} 61.
Ka2 {[%clk 00:00:25]} {[%emt 00:00:02]} R1b2+ {[%clk 00:04:42]} {[%emt
00:00:02]} 62. Ka1 {[%clk 00:00:28]} {[%emt 00:00:02]} R2b4 {[%emt 00:00:12]}
63. Ka2 Rb1 {[%emt 00:00:05]} 64. Ra3 {[%clk 00:15:05]} {[%emt 00:00:02]} R7b2#
{[%clk 00:15:05]} 1/2-1/2

[Event "Nové Hrady - Rapid A"]
[Site "Nové Hrady, Czech Republic"]
[Date "2024.08.10"]
[Round "5.5"]
[White "Borecký, Andrej"]
[Black "Černý, Zbyšek"]
[Result "1-0"]
[TimeControl "2x15min+5s"]
[WhiteFideId "23752670"]
[BlackFideId "23739380"]
[WhiteElo "1618"]
[BlackElo "1560"]

1. e4 {[%clk 00:15:08]} {[%emt 00:00:03]} e5 {[%clk 00:15:05]} {[%emt
00:00:05]} 2. Nf3 {[%clk 00:15:11]} {[%emt 00:00:03]} Nc6 {[%clk 00:15:08]}
{[%emt 00:00:02]} 3. Bc4 {[%clk 00:15:08]} {[%emt 00:00:07]} Nf6 {[%clk
00:15:11]} {[%emt 00:00:02]} 4. d3 {[%clk 00:15:09]} {[%emt 00:00:05]} Bc5
{[%clk 00:15:02]} {[%emt 00:00:14]} 5. O-O {[%clk 00:14:37]} {[%emt 00:00:37]}
O-O {[%clk 00:15:05]} {[%emt 00:00:02]} 6. c3 {[%clk 00:14:38]} {[%emt
00:00:03]} d6 {[%clk 00:15:05]} {[%emt 00:00:05]} 7. Re1 {[%clk 00:14:30]}
{[%emt 00:00:13]} Bg4 {[%clk 00:15:01]} {[%emt 00:00:09]} 8. Nbd2 {[%clk
00:14:07]} {[%emt 00:00:27]} h6 {[%clk 00:15:01]} {[%emt 00:00:05]} 9. h3
{[%clk 00:13:42]} {[%emt 00:00:30]} Bh5 {[%clk 00:15:05]} {[%emt 00:00:02]} 10.
g4 {[%clk 00:11:58]} {[%emt 00:01:50]} Bg6 {[%clk 00:14:15]} {[%emt 00:00:54]}
11. Nf1 {[%clk 00:11:35]} {[%emt 00:00:29]} Na5 {[%clk 00:14:12]} {[%emt
00:00:08]} 12. Bb3 {[%clk 00:10:22]} {[%emt 00:01:17]} Nxb3 {[%clk 00:14:08]}
{[%emt 00:00:09]} 13. Qxb3 {[%clk 00:10:25]} {[%emt 00:00:03]} Bb6 {[%clk
00:13:25]} {[%emt 00:00:47]} 14. Ne3 {[%clk 00:09:39]} {[%emt 00:00:51]} Nd7
{[%clk 00:12:52]} {[%emt 00:00:37]} 15. Qc2 {[%clk 00:08:42]} {[%emt 00:01:03]}
c6 {[%clk 00:11:44]} {[%emt 00:01:13]} 16. Nf5 {[%clk 00:07:36]} {[%emt
00:01:11]} Qf6 {[%clk 00:10:39]} {[%emt 00:01:08]} 17. Be3 {[%clk 00:05:27]}
{[%emt 00:02:16]} Bxf5 {[%clk 00:10:26]} {[%emt 00:00:17]} 18. exf5 {[%clk
00:05:08]} {[%emt 00:00:24]} h5 {[%clk 00:09:28]} {[%emt 00:01:04]} 19. Bg5
{[%clk 00:05:01]} {[%emt 00:00:12]} Qd8 {[%emt 00:00:38]} 1-0

[Event "Nové Hrady - Rapid A"]
[Site "Nové Hrady, Czech Republic"]
[Date "2024.08.10"]
[Round "5.8"]
[White "Vondruška, Leoš"]
[Black "Valiyev, Adil"]
[Result "0-1"]
[TimeControl "2x15min+5s"]
[WhiteFideId "23730099"]
[BlackFideId "23752246"]
[WhiteElo "1506"]
[BlackElo "1469"]

1. e4 {[%clk 00:15:08]} e5 {[%clk 00:15:09]} {[%emt 00:00:02]} 2. Nf3 {[%clk
00:15:11]} {[%emt 00:00:02]} Nc6 {[%clk 00:15:12]} {[%emt 00:00:02]} 3. Bc4
{[%clk 00:15:13]} {[%emt 00:00:02]} Nf6 {[%clk 00:15:13]} {[%emt 00:00:04]} 4.
d3 {[%clk 00:15:14]} {[%emt 00:00:05]} Bc5 {[%clk 00:15:04]} {[%emt 00:00:13]}
5. h3 {[%clk 00:15:02]} {[%emt 00:00:17]} d6 {[%clk 00:15:01]} {[%emt
00:00:09]} 6. c3 {[%clk 00:14:47]} {[%emt 00:00:21]} O-O {[%clk 00:14:22]}
{[%emt 00:00:43]} 7. b4 {[%clk 00:13:28]} {[%emt 00:01:24]} Bb6 {[%clk
00:14:22]} {[%emt 00:00:05]} 8. a4 {[%clk 00:13:06]} {[%emt 00:00:27]} a5
{[%clk 00:14:23]} {[%emt 00:00:03]} 9. b5 {[%clk 00:12:57]} {[%emt 00:00:14]}
Ne7 {[%clk 00:14:26]} {[%emt 00:00:02]} 10. Bg5 {[%clk 00:12:20]} {[%emt
00:00:42]} Ng6 {[%clk 00:14:21]} {[%emt 00:00:10]} 11. Nbd2 {[%clk 00:11:33]}
{[%emt 00:00:52]} h6 {[%clk 00:14:20]} {[%emt 00:00:06]} 12. Bxf6 {[%clk
00:09:47]} {[%emt 00:01:52]} Qxf6 {[%clk 00:14:21]} {[%emt 00:00:04]} 13. Bd5
{[%clk 00:09:17]} {[%emt 00:00:35]} Ne7 {[%clk 00:14:06]} {[%emt 00:00:19]} 14.
Bc4 {[%clk 00:08:23]} {[%emt 00:01:00]} Be6 {[%clk 00:14:08]} {[%emt 00:00:03]}
15. Qb3 {[%clk 00:07:55]} {[%emt 00:00:32]} Ng6 {[%clk 00:12:34]} {[%emt
00:01:38]} 16. Qd1 {[%clk 00:06:26]} {[%emt 00:01:36]} Rad8 {[%clk 00:09:16]}
{[%emt 00:03:21]} 17. Bxe6 {[%clk 00:06:06]} {[%emt 00:00:27]} fxe6 {[%clk
00:09:15]} {[%emt 00:00:05]} 18. O-O {[%clk 00:05:59]} {[%emt 00:00:13]} d5
{[%clk 00:09:15]} {[%emt 00:00:04]} 19. d4 {[%clk 00:05:12]} {[%emt 00:00:53]}
exd4 {[%emt 00:00:24]} 20. exd5 {[%clk 00:04:44]} {[%emt 00:00:30]} dxc3 {[%clk
00:08:40]} {[%emt 00:00:24]} 21. Ne4 {[%clk 00:03:55]} {[%emt 00:00:54]} Qf5
{[%clk 00:08:27]} {[%emt 00:00:12]} 22. Nxc3 {[%clk 00:02:24]} {[%emt
00:01:42]} exd5 {[%clk 00:08:17]} {[%emt 00:00:15]} 23. Qb3 {[%clk 00:02:14]}
{[%emt 00:00:15]} Qf7 {[%clk 00:07:54]} {[%emt 00:00:27]} 24. Rad1 {[%clk
00:02:03]} {[%emt 00:00:16]} Nf4 {[%clk 00:06:45]} {[%emt 00:01:14]} 25. Rd2
{[%clk 00:01:18]} {[%emt 00:00:48]} Nxh3+ {[%clk 00:05:41]} {[%emt 00:01:11]}
26. Kh2 {[%clk 00:00:50]} {[%emt 00:00:34]} Nf4 {[%clk 00:05:39]} {[%emt
00:00:07]} 27. g3 {[%clk 00:00:24]} {[%emt 00:00:31]} Qh5+ {[%clk 00:05:39]}
{[%emt 00:00:04]} 28. Nh4 {[%clk 00:00:20]} {[%emt 00:00:09]} Kh8 {[%clk
00:04:11]} {[%emt 00:01:34]} 29. Kg1 {[%clk 00:00:21]} {[%emt 00:00:03]} Ne6
{[%clk 00:02:48]} {[%emt 00:01:28]} 30. Nxd5 {[%clk 00:00:08]} {[%emt
00:00:19]} Nc5 {[%clk 00:02:48]} {[%emt 00:00:04]} 31. Qc4 {[%clk 00:00:10]}
{[%emt 00:00:03]} c6 {[%clk 00:02:18]} {[%emt 00:00:36]} 32. Nf4 {[%clk
00:00:12]} {[%emt 00:00:03]} Qg5 {[%clk 00:01:58]} {[%emt 00:00:24]} 33. Nhg6+
{[%clk 00:00:14]} {[%emt 00:00:03]} Kh7 {[%clk 00:01:59]} {[%emt 00:00:03]} 34.
Nxf8+ {[%clk 00:00:18]} Rxf8 {[%clk 00:02:01]} {[%emt 00:00:05]} 35. Qc2+
{[%clk 00:00:22]} {[%emt 00:00:02]} Kg8 {[%clk 00:01:45]} {[%emt 00:00:20]} 36.
Rfd1 {[%clk 00:00:26]} Rxf4 {[%clk 00:00:55]} {[%emt 00:00:56]} 37. Kf1 {[%clk
00:00:19]} {[%emt 00:00:12]} Rf8 {[%clk 00:00:56]} {[%emt 00:00:03]} 38. Qc4+
{[%clk 00:00:23]} {[%emt 00:00:02]} Kh8 {[%clk 00:00:58]} {[%emt 00:00:02]} 39.
Qc2 {[%clk 00:00:25]} {[%emt 00:00:04]} Qxg3 {[%clk 00:00:45]} {[%emt
00:00:19]} 40. Rd3 {[%clk 00:00:25]} {[%emt 00:00:04]} Nxd3 {[%clk 00:00:46]}
{[%emt 00:00:04]} 41. Rxd3 {[%clk 00:00:22]} {[%emt 00:00:08]} Rxf2+ {[%clk
00:00:48]} {[%emt 00:00:02]} 42. Ke1 {[%clk 00:00:13]} {[%emt 00:00:14]} Qg1#
{[%clk 00:00:52]} 0-1

[Event "Nové Hrady - Rapid A"]
[Site "Nové Hrady, Czech Republic"]
[Date "2024.08.10"]
[Round "6.1"]
[White "Dudarec, Elias"]
[Black "Hák, David"]
[Result "1-0"]
[TimeControl "2x15min+5s"]
[WhiteFideId "23714930"]
[BlackFideId "377007"]
[WhiteElo "1588"]
[BlackElo "2192"]

1. e4 {[%clk 00:15:08]} {[%emt 00:00:02]} c5 {[%clk 00:15:09]} 2. b4 {[%clk
00:15:12]} cxb4 {[%clk 00:15:08]} {[%emt 00:00:08]} 3. a3 {[%clk 00:15:16]} d5
{[%clk 00:15:12]} {[%emt 00:00:02]} 4. exd5 {[%clk 00:15:19]} {[%emt 00:00:03]}
Qxd5 {[%clk 00:15:15]} {[%emt 00:00:01]} 5. Nf3 {[%clk 00:15:23]} {[%emt
00:00:02]} Bg4 {[%clk 00:15:09]} {[%emt 00:00:11]} 6. axb4 {[%clk 00:15:26]}
{[%emt 00:00:02]} Nc6 {[%clk 00:12:20]} {[%emt 00:02:53]} 7. Nc3 {[%clk
00:14:29]} {[%emt 00:01:03]} Qe6+ {[%clk 00:12:24]} {[%emt 00:00:01]} 8. Qe2
{[%clk 00:11:07]} {[%emt 00:03:26]} Bxf3 {[%clk 00:10:52]} {[%emt 00:01:38]} 9.
Qxe6 {[%clk 00:10:56]} {[%emt 00:00:16]} fxe6 {[%clk 00:10:55]} 10. gxf3 {[%clk
00:10:59]} {[%emt 00:00:03]} Nxb4 {[%clk 00:10:17]} {[%emt 00:00:44]} 11. Rb1
{[%clk 00:09:25]} {[%emt 00:01:39]} Nxc2+ {[%clk 00:10:14]} {[%emt 00:00:08]}
12. Kd1 {[%clk 00:09:29]} Nd4 {[%clk 00:10:16]} {[%emt 00:00:02]} 13. Rxb7
{[%clk 00:09:22]} {[%emt 00:00:13]} Nf6 {[%clk 00:09:46]} {[%emt 00:00:34]} 14.
Bh3 {[%clk 00:08:51]} {[%emt 00:00:37]} g6 {[%clk 00:08:27]} {[%emt 00:01:23]}
15. Ba3 {[%clk 00:08:32]} {[%emt 00:00:25]} Nd5 {[%clk 00:05:22]} {[%emt
00:03:10]} 16. Nxd5 {[%emt 00:01:50]} exd5 17. Re1 {[%clk 00:06:41]} {[%emt
00:00:11]} Nxf3 {[%clk 00:01:25]} {[%emt 00:04:05]} 18. Re3 {[%clk 00:05:00]}
{[%emt 00:01:46]} Ng5 {[%clk 00:01:16]} {[%emt 00:00:15]} 19. Bxe7 {[%clk
00:03:29]} {[%emt 00:01:36]} d4 {[%clk 00:00:22]} {[%emt 00:00:59]} 20. Re2
{[%clk 00:02:18]} {[%emt 00:01:16]} Bxe7 {[%clk 00:00:22]} {[%emt 00:00:05]} 21.
Rexe7+ {[%clk 00:02:21]} {[%emt 00:00:02]} Kf8 {[%clk 00:00:22]} {[%emt
00:00:04]} 22. Bg2 {[%clk 00:01:48]} {[%emt 00:00:38]} Rd8 {[%clk 00:00:08]}
{[%emt 00:00:20]} 23. h4 {[%clk 00:01:47]} {[%emt 00:00:06]} h6 {[%clk
00:00:12]} 24. hxg5 {[%clk 00:01:47]} {[%emt 00:00:06]} hxg5 {[%clk 00:00:16]}
25. Rf7+ {[%clk 00:01:43]} {[%emt 00:00:10]} Kg8 26. Rg7+ Kf8 {[%clk 00:00:21]}
27. Rbf7+ {[%emt 00:00:08]} 1-0

[Event "Nové Hrady - Rapid A"]
[Site "Nové Hrady, Czech Republic"]
[Date "2024.08.10"]
[Round "6.2"]
[White "Steinbauer, Sebastián"]
[Black "Garabik, Marek"]
[Result "1/2-1/2"]
[TimeControl "2x15min+5s"]
[WhiteFideId "399272"]
[BlackFideId "23717742"]
[WhiteElo "2018"]
[BlackElo "1933"]

1. e4 {[%clk 00:15:07]} {[%emt 00:00:03]} e6 {[%clk 00:15:09]} 2. d4 {[%clk
00:15:11]} {[%emt 00:00:02]} d5 {[%clk 00:15:14]} 3. exd5 {[%clk 00:15:15]}
exd5 {[%clk 00:15:18]} 4. Bd3 {[%clk 00:15:17]} {[%emt 00:00:06]} Nf6 {[%clk
00:15:16]} {[%emt 00:00:06]} 5. Nf3 {[%clk 00:15:21]} {[%emt 00:00:02]} Bd6
{[%clk 00:15:20]} {[%emt 00:00:01]} 6. O-O {[%clk 00:15:17]} {[%emt 00:00:09]}
O-O {[%clk 00:15:23]} {[%emt 00:00:02]} 7. Bg5 {[%clk 00:15:20]} {[%emt
00:00:02]} c6 {[%clk 00:15:12]} {[%emt 00:00:16]} 8. c3 {[%clk 00:15:24]}
{[%emt 00:00:01]} Bg4 {[%clk 00:15:16]} {[%emt 00:00:02]} 9. Nbd2 {[%clk
00:15:27]} Nbd7 {[%clk 00:15:17]} {[%emt 00:00:05]} 10. Qc2 {[%clk 00:15:31]}
Qc7 {[%clk 00:15:15]} {[%emt 00:00:08]} 11. Bh4 {[%clk 00:15:35]} {[%emt
00:00:01]} Bh5 {[%clk 00:15:14]} {[%emt 00:00:05]} 12. Bg3 {[%clk 00:15:39]}
Bg6 {[%clk 00:15:18]} {[%emt 00:00:03]} 13. Bxg6 {[%clk 00:15:41]} {[%emt
00:00:03]} hxg6 {[%clk 00:15:19]} {[%emt 00:00:03]} 14. Bxd6 {[%clk 00:15:45]}
{[%emt 00:00:02]} Qxd6 {[%clk 00:15:22]} {[%emt 00:00:02]} 15. Rfe1 {[%clk
00:15:47]} {[%emt 00:00:03]} Rfe8 {[%clk 00:15:24]} {[%emt 00:00:02]} 16. a4
{[%clk 00:15:16]} {[%emt 00:00:37]} b6 {[%clk 00:14:28]} {[%emt 00:01:02]} 17.
b4 {[%clk 00:15:14]} {[%emt 00:00:06]} a6 {[%clk 00:13:35]} {[%emt 00:00:57]}
18. Rab1 {[%clk 00:14:53]} {[%emt 00:00:27]} Rac8 {[%clk 00:13:31]} {[%emt
00:00:10]} 19. Qd3 {[%clk 00:14:52]} {[%emt 00:00:05]} b5 {[%clk 00:12:09]}
{[%emt 00:01:27]} 20. axb5 {[%clk 00:14:51]} {[%emt 00:00:04]} axb5 {[%clk
00:12:13]} {[%emt 00:00:02]} 21. Ra1 {[%clk 00:14:38]} {[%emt 00:00:19]} Rxe1+
{[%clk 00:11:25]} {[%emt 00:00:52]} 22. Nxe1 {[%clk 00:14:36]} {[%emt
00:00:07]} Nb6 {[%clk 00:10:27]} {[%emt 00:01:04]} 23. Nef3 {[%clk 00:14:38]}
{[%emt 00:00:03]} Nfd7 {[%clk 00:10:19]} {[%emt 00:00:13]} 24. Re1 {[%clk
00:14:20]} {[%emt 00:00:22]} Nf6 {[%clk 00:07:05]} {[%emt 00:03:19]} 25. Ne5
{[%clk 00:14:05]} {[%emt 00:00:20]} Nbd7 {[%clk 00:06:46]} {[%emt 00:00:25]} 26.
Qh3 {[%clk 00:12:39]} {[%emt 00:01:30]} Re8 {[%clk 00:05:34]} {[%emt 00:01:18]}
27. Ndf3 {[%clk 00:12:18]} {[%emt 00:00:26]} Qc7 {[%clk 00:03:36]} {[%emt
00:02:02]} 28. Re3 {[%clk 00:10:59]} {[%emt 00:01:24]} Nxe5 {[%clk 00:02:09]}
{[%emt 00:01:32]} 29. Nxe5 {[%clk 00:10:53]} {[%emt 00:00:11]} Ra8 {[%clk
00:01:24]} {[%emt 00:00:50]} 30. Re1 {[%clk 00:10:10]} {[%emt 00:00:48]} Ra3
{[%clk 00:01:13]} {[%emt 00:00:17]} 31. Rc1 {[%clk 00:09:25]} {[%emt 00:00:50]}
Ne4 {[%clk 00:00:19]} {[%emt 00:00:59]} 32. Qe3 {[%clk 00:09:21]} {[%emt
00:00:08]} Nf6 {[%clk 00:00:09]} {[%emt 00:00:16]} 33. f3 {[%clk 00:09:16]}
{[%emt 00:00:10]} Nd7 {[%clk 00:00:12]} {[%emt 00:00:02]} 34. f4 {[%clk
00:08:34]} {[%emt 00:00:47]} Nxe5 {[%clk 00:00:11]} {[%emt 00:00:05]} 35. fxe5
{[%clk 00:08:35]} {[%emt 00:00:04]} Qe7 {[%clk 00:00:09]} {[%emt 00:00:08]} 36.
Qf4 {[%clk 00:08:22]} {[%emt 00:00:17]} Qe6 {[%clk 00:00:09]} {[%emt 00:00:06]}
37. g4 {[%clk 00:08:11]} {[%emt 00:00:15]} Qd7 {[%clk 00:00:09]} {[%emt
00:00:06]} 38. h4 {[%clk 00:08:09]} {[%emt 00:00:06]} Ra2 {[%clk 00:00:10]}
{[%emt 00:00:05]} 39. Rf1 {[%clk 00:08:01]} {[%emt 00:00:12]} Rc2 {[%clk
00:00:10]} {[%emt 00:00:06]} 40. Qf3 {[%clk 00:07:52]} {[%emt 00:00:12]} Qe7
{[%clk 00:00:13]} {[%emt 00:00:04]} 41. Qg3 {[%clk 00:07:39]} {[%emt 00:00:18]}
f6 {[%clk 00:00:13]} {[%emt 00:00:06]} 42. exf6 {[%clk 00:07:13]} {[%emt
00:00:29]} gxf6 {[%clk 00:00:12]} {[%emt 00:00:07]} 43. h5 {[%clk 00:03:35]}
{[%emt 00:03:43]} Qe4 {[%clk 00:00:07]} {[%emt 00:00:10]} 44. Rxf6 {[%clk
00:02:43]} {[%emt 00:00:56]} Rc1+ {[%clk 00:00:11]} 45. Rf1 {[%clk 00:02:47]}
{[%emt 00:00:02]} Rxf1+ {[%clk 00:00:08]} {[%emt 00:00:08]} 46. Kxf1 {[%clk
00:02:51]} {[%emt 00:00:02]} Qb1+ {[%clk 00:00:11]} {[%emt 00:00:02]} 47. Kg2
{[%clk 00:02:49]} {[%emt 00:00:07]} Qc2+ {[%clk 00:00:15]} 48. Kh3 {[%clk
00:02:49]} {[%emt 00:00:04]} Kg7 {[%clk 00:00:10]} {[%emt 00:00:11]} 49. Qe5+
{[%clk 00:02:51]} {[%emt 00:00:03]} Kh7 {[%clk 00:00:07]} {[%emt 00:00:07]} 50.
Qe7+ {[%clk 00:02:46]} {[%emt 00:00:10]} Kh6 {[%clk 00:00:10]} {[%emt
00:00:02]} 51. Qf8+ {[%clk 00:02:45]} {[%emt 00:00:06]} Kg5 {[%clk 00:00:13]}
52. Qe7+ {[%clk 00:02:42]} {[%emt 00:00:10]} Kh6 {[%clk 00:00:17]} {[%emt
00:00:01]} 53. Qe3+ {[%clk 00:02:41]} {[%emt 00:00:06]} Kg7 {[%clk 00:00:18]}
{[%emt 00:00:05]} 54. Qe5+ {[%clk 00:01:52]} {[%emt 00:00:53]} Kh6 {[%clk
00:00:13]} {[%emt 00:00:10]} 55. Qf4+ {[%clk 00:01:56]} Kg7 {[%clk 00:00:08]}
{[%emt 00:00:12]} 56. Qe5+ {[%clk 00:01:17]} {[%emt 00:00:44]} Kh6 {[%clk
00:00:12]} 57. Qe3+ {[%clk 00:01:16]} {[%emt 00:00:06]} Kg7 {[%clk 00:00:15]}
{[%emt 00:00:02]} 58. h6+ {[%clk 00:00:57]} {[%emt 00:00:23]} Kh7 {[%clk
00:00:12]} {[%emt 00:00:21]} 59. g5 {[%clk 00:00:55]} {[%emt 00:00:07]} Qf5+
{[%clk 00:00:16]} 60. Kg3 {[%clk 00:00:59]} Qd7 {[%clk 00:00:17]} {[%emt
00:00:05]} 61. Qe5 {[%clk 00:00:55]} {[%emt 00:00:09]} Qf7 {[%clk 00:00:13]}
{[%emt 00:00:09]} 62. Qd6 {[%clk 00:00:25]} {[%emt 00:00:35]} Qb7 {[%clk
00:00:08]} {[%emt 00:00:11]} 63. Qe5 {[%clk 00:00:15]} {[%emt 00:00:14]} Qf7
{[%clk 00:00:12]} {[%emt 00:00:02]} 64. Qg7+ {[%clk 00:00:09]} {[%emt
00:00:11]} Qxg7 65. hxg7 Kxg7 {[%clk 00:00:14]} 66. Kf4 {[%clk 00:00:12]}
{[%emt 00:00:03]} Kf7 {[%clk 00:00:17]} 67. Kf3 {[%clk 00:00:11]} {[%emt
00:00:06]} Ke7 {[%clk 00:00:19]} {[%emt 00:00:04]} 68. Kg3 {[%clk 00:00:15]}
{[%emt 00:00:01]} Ke6 {[%clk 00:00:23]} 69. Kg4 {[%clk 00:00:19]} Kd6 {[%clk
00:00:26]} {[%emt 00:00:04]} 70. Kf3 {[%clk 00:00:17]} {[%emt 00:00:06]} Ke6
{[%clk 00:00:29]} {[%emt 00:00:02]} 71. Kg4 {[%emt 00:00:10]} 1/2-1/2